fUSD/lending_fUSD_20250620
["ID","MTS","AMOUNT","RATE_DAILY","PERIOD"]
[366771078,1750440704237,-1938.15,0.00028672,4]
[366771079,1750440704248,-490.0,0.00028672,4]
[366771080,1750440704258,-1286.16,0.00028672,4]
[366771081,1750440704270,-490.0,0.00028672,4]
[366771082,1750440704280,-490.0,0.00028672,4]
[366771083,1750440704291,-1042.0,0.00028672,4]
[366771084,1750440704301,-490.0,0.00028672,4]
[366771085,1750440704311,-791.65,0.00028672,4]
[366771086,1750440704323,-566.26,0.00028672,4]
[366771087,1750440704333,-506.4016765,0.00028672,4]
[366771088,1750440704344,-823.76,0.00028672,4]
[366771089,1750440704354,-490.0,0.00028672,4]
[366771090,1750440704365,-653.43,0.00028672,4]
[366771091,1750440704375,-490.0,0.00028672,4]
[366771092,1750440704385,-797.01,0.00028672,4]
[366771093,1750440704396,-705.01,0.00028672,4]
[366771094,1750440704406,-493.89,0.00028672,4]
[366771095,1750440704416,-499.27,0.00028672,4]
[366771096,1750440704426,-928.6,0.00028672,4]
[366771097,1750440704436,-490.0,0.00028672,4]
[366771098,1750440704446,-1752.63,0.00028672,4]
[366771099,1750440704457,-490.0,0.00028672,4]
[366771100,1750440704467,-490.0,0.00028672,4]
[366771101,1750440704477,-490.0,0.00028672,4]
[366771102,1750440704488,-669.55,0.00028672,4]
[366771103,1750440704498,-490.0,0.00028672,4]
[366771104,1750440704508,-490.0,0.00028672,4]
[366771105,1750440704519,-490.0,0.00028672,4]
[366771106,1750440704530,-614.6,0.00028672,4]
[366771107,1750440704539,-513.28,0.00028672,4]
[366771108,1750440704549,-1221.53,0.00028672,4]
[366771109,1750440704559,-490.0,0.00028673,4]
[366771110,1750440704568,-490.0,0.00028673,4]
[366771111,1750440704579,-490.0,0.00028673,4]
[366771112,1750440704589,-490.0,0.00028673,4]
[366771113,1750440704599,-647.28,0.00028673,4]
[366771114,1750440704610,-516.8,0.00028673,4]
[366771115,1750440704619,-667.67,0.00028673,4]
[366771116,1750440704629,-490.0,0.00028673,4]
[366771117,1750440704639,-490.0,0.00028673,4]
[366771118,1750440704649,-490.0,0.00028673,4]
[366771119,1750440704658,-490.0,0.00028673,4]
[366771120,1750440704668,-504.97,0.00028673,4]
[366771121,1750440704678,-490.0,0.00028673,4]
[366771122,1750440704688,-572.2998303,0.00028673,4]
[366771123,1750440704697,-387.23877113,0.00028673,4]
[366771124,1750440704707,-490.0,0.00028673,4]
[366771125,1750440704717,-490.0,0.00028673,4]
[366771126,1750440704727,-514.51,0.00028673,4]
[366771127,1750440704738,-490.0,0.00028673,4]
[366771128,1750440704751,-490.0,0.00028673,4]
[366771129,1750440704761,-490.0,0.00028673,4]
[366771130,1750440704773,-490.0,0.00028673,4]
[366771131,1750440704783,-603.69,0.00028673,4]
[366771132,1750440704794,-490.0,0.00028673,4]
[366771133,1750440704805,-916.28,0.00028673,4]
[366771134,1750440704815,-490.0,0.00028673,4]
[366771135,1750440704826,-490.0,0.00028673,4]
[366771136,1750440704837,-578.52,0.00028673,4]
[366771137,1750440704847,-490.0,0.00028673,4]
[366771138,1750440704857,-793.1,0.00028673,4]
[366771139,1750440704866,-490.0,0.00028673,4]
[366771140,1750440704876,-490.0,0.00028673,4]
[366771141,1750440704886,-490.0,0.00028673,4]
[366771142,1750440704896,-490.0,0.00028673,4]
[366771143,1750440704905,-555.7633411,0.00028673,4]
[366771144,1750440704915,-490.0,0.00028673,4]
[366771145,1750440704925,-490.0,0.00028673,4]
[366771146,1750440704934,-490.0,0.00028673,4]
[366771147,1750440704943,-490.0,0.00028673,4]
[366771148,1750440704953,-727.94,0.00028673,4]
[366771149,1750440704963,-490.0,0.00028673,4]
[366771150,1750440704973,-490.0,0.00028673,4]
[366771151,1750440704983,-490.0,0.00028673,4]
[366771152,1750440704993,-490.0,0.00028673,4]
[366771153,1750440705003,-490.0,0.00028673,4]
[366771154,1750440705012,-400.7250716,0.00028673,4]
[366771155,1750440705025,-490.0,0.00028673,4]
[366771156,1750440705035,-490.0,0.00028673,4]
[366771157,1750440705045,-490.0,0.00028673,4]
[366771158,1750440705056,-490.0,0.00028673,4]
[366771159,1750440705065,-591.47,0.00028673,4]
[366771160,1750440705075,-1424.33,0.00028673,4]
[366771161,1750440705085,-1144.78,0.00028673,4]
[366771162,1750440705094,-491.74,0.00028673,4]
[366771163,1750440705104,-490.0,0.00028673,4]
[366771164,1750440705114,-1076.06,0.00028673,4]
[366771165,1750440705124,-509.95,0.00028673,4]
[366771166,1750440705134,-490.0,0.00028673,4]
[366771167,1750440705143,-1366.43,0.00028673,4]
[366771168,1750440705153,-527.56,0.00028673,4]
[366771169,1750440705163,-1816.18,0.00028673,4]
[366771170,1750440705172,-551.8,0.00028673,4]
[366771171,1750440705183,-682.44,0.00028673,4]
[366771172,1750440705193,-490.0,0.00028673,4]
[366771173,1750440705202,-490.0,0.00028673,4]
[366771174,1750440705212,-574.86,0.00028673,4]
[366771175,1750440705221,-10103.26,0.00028673,4]
[366771176,1750440705231,-490.0,0.00028673,4]
[366771177,1750440705241,-490.0,0.00028673,4]
[366771178,1750440705251,-634.64,0.00028673,4]
[366771179,1750440705262,-3814.59,0.00028673,2]
[366771180,1750440705274,-1940.17,0.00028673,4]
[366771181,1750440705285,-490.0,0.00028673,4]
[366771182,1750440705296,-710.04,0.00028673,4]
[366771183,1750440705307,-682.88,0.00028673,4]
[366771184,1750440705316,-490.0,0.00028673,4]
[366771185,1750440705326,-2290.89,0.00028673,4]
[366771186,1750440705336,-490.0,0.00028673,4]
[366771187,1750440705346,-537.06446401,0.00028673,4]
[366771188,1750440705356,-2759.01,0.00028673,4]
[366771189,1750440705366,-3647.07,0.00028673,4]
[366771190,1750440705376,-651.97,0.00028673,4]
[366771191,1750440705386,-490.0,0.00028673,4]
[366771192,1750440705396,-582.01,0.00028673,4]
[366771193,1750440705406,-1217.61,0.00028673,4]
[366771194,1750440705416,-847.56,0.00028673,4]
[366771195,1750440705426,-490.0,0.00028673,4]
[366771196,1750440705436,-1886.27,0.00028673,4]
[366771197,1750440705446,-490.0,0.00028673,4]
[366771198,1750440705456,-1594.08,0.00028673,4]
[366771199,1750440705466,-490.0,0.00028673,4]
[366771200,1750440705476,-490.0,0.00028673,4]
[366771201,1750440705487,-1903.29,0.00028673,4]
[366771202,1750440705497,-665.17,0.00028673,4]
[366771203,1750440705507,-638.76,0.00028673,4]
[366771204,1750440705518,-538.1,0.00028673,4]
[366771205,1750440705528,-1000.0,0.00028673,4]
[366771206,1750440705539,-701.54,0.00028673,4]
[366771207,1750440705549,-632.98,0.00028673,4]
[366771208,1750440705559,-490.0,0.00028673,4]
[366771209,1750440705569,-1799.61,0.00028673,4]
[366771210,1750440705579,-543.75,0.00028673,4]
[366771211,1750440705589,-501.72377689,0.00028673,4]
[366771212,1750440705599,-490.0,0.00028673,4]
[366771213,1750440705609,-751.18,0.00028673,4]
[366771214,1750440705619,-490.0,0.00028673,4]
[366771215,1750440705629,-490.0,0.00028673,4]
[366771216,1750440705638,-1965.09,0.00028673,4]
[366771217,1750440705648,-490.0,0.00028673,4]
[366771218,1750440705657,-490.0,0.00028673,4]
[366771219,1750440705667,-835.07,0.00028673,4]
[366771220,1750440705677,-506.38,0.00028673,4]
[366771221,1750440705687,-535.19,0.00028673,4]
[366771222,1750440705698,-1865.75,0.00028673,4]
[366771223,1750440705707,-490.0,0.00028673,4]
[366771224,1750440705717,-490.0,0.00028673,4]
[366771225,1750440705727,-2004.72,0.00028673,4]
[366771226,1750440705738,-490.0,0.00028673,4]
[366771227,1750440705752,-593.92,0.00028673,4]
[366771228,1750440705762,-764.06,0.00028673,4]
[366771229,1750440705774,-843.4,0.00028673,4]
[366771230,1750440705784,-213.80747807,0.00028678,4]
[366771231,1750440705794,-490.0,0.00028678,4]
[366771232,1750440705803,-245.42503366,0.00028678,4]
[366771233,1750440705814,-490.0,0.00028678,4]
[366771234,1750440705825,-496.62,0.00028678,4]
[366771235,1750440705835,-490.0,0.00028678,4]
[366771236,1750440705845,-490.0,0.00028678,4]
[366771237,1750440705855,-592.71,0.00028678,4]
[366771238,1750440705864,-626.67309969,0.00028678,4]
[366771239,1750440705874,-490.0,0.00028678,4]
[366771240,1750440705883,-490.0,0.00028678,4]
[366771241,1750440705894,-609.66746659,0.00028678,4]
[366771242,1750440705903,-490.0,0.00028678,4]
[366771243,1750440705913,-490.0,0.00028678,4]
[366771244,1750440705923,-705.73,0.00028678,4]
[366771245,1750440705933,-294.87934209,0.00028678,4]
[366771246,1750440705943,-490.0,0.00028678,4]
[366771247,1750440705953,-488.52200715,0.00028678,4]
[366771248,1750440705964,-490.0,0.00028678,4]
[366771249,1750440705975,-490.0,0.00028678,4]
[366771250,1750440705985,-490.0,0.00028678,4]
[366771251,1750440705994,-490.0,0.00028678,4]
[366771252,1750440706005,-463.74987545,0.00028678,4]
[366771253,1750440706015,-490.0,0.00028678,4]
[366771254,1750440706029,-490.0,0.00028678,4]
[366771255,1750440706039,-308.37000093,0.00028678,4]
[366771256,1750440706050,-311.75056409,0.00028678,4]
[366771257,1750440706060,-490.0,0.00028678,4]
[366771258,1750440706069,-490.0,0.00028678,4]
[366771259,1750440706080,-409.16150633,0.00028678,4]
[366771260,1750440706090,-312.65334574,0.00028678,4]
[366771261,1750440706101,-490.0,0.00028678,4]
[366771262,1750440706111,-490.0,0.00028678,4]
[366771263,1750440706121,-490.0,0.00028678,4]
[366771264,1750440706131,-431.18347138,0.00028678,4]
[366771265,1750440706141,-490.0,0.00028678,4]
[366771266,1750440706152,-490.0,0.00028678,4]
[366771267,1750440706162,-490.0,0.00028678,4]
[366771268,1750440706172,-464.13665091,0.00028678,4]
[366771269,1750440706183,-490.0,0.00028678,4]
[366771270,1750440706194,-490.0,0.00028678,4]
[366771271,1750440706205,-678.01,0.00028678,4]
[366771272,1750440706214,-490.0,0.00028678,4]
[366771273,1750440706225,-667.64,0.00028678,4]
[366771274,1750440706235,-4654.55,0.00028678,4]
[366771275,1750440706246,-1757.34,0.00028678,4]
[366771276,1750440706256,-490.0,0.00028678,4]
[366771277,1750440706270,-2408.79,0.00028678,4]
[366771278,1750440706279,-490.0,0.00028678,4]
[366771279,1750440706291,-490.0,0.00028678,4]
[366771280,1750440706302,-933.37,0.00028678,4]
[366771281,1750440706312,-490.0,0.00028678,4]
[366771282,1750440706323,-490.0,0.00028678,4]
[366771283,1750440706334,-490.0,0.00028678,4]
[366771284,1750440706344,-490.0,0.00028678,4]
[366771285,1750440706355,-490.0,0.00028678,4]
[366771286,1750440706365,-1279.77,0.00028678,4]
[366771287,1750440706376,-490.0,0.00028678,4]
[366771288,1750440706386,-490.0,0.00028678,4]
[366771289,1750440706397,-739.04,0.00028678,4]
[366771290,1750440706407,-490.0,0.00028678,4]
[366771291,1750440706418,-499.97,0.00028678,4]
[366771292,1750440706429,-490.0,0.00028678,4]
[366771293,1750440706440,-490.0,0.00028678,4]
[366771294,1750440706450,-490.0,0.00028678,4]
[366771295,1750440706461,-518.98283108,0.00028678,4]
[366771296,1750440706471,-490.0,0.00028678,4]
[366771297,1750440706482,-175.69933161,0.00028678,4]
[366771298,1750440706493,-490.0,0.00028678,4]
[366771299,1750440706503,-543.59,0.00028678,4]
[366771300,1750440706514,-490.0,0.00028678,4]
[366771301,1750440706528,-490.0,0.00028678,4]
[366771302,1750440706539,-513.62249112,0.00028678,4]
[366771303,1750440706550,-490.0,0.00028678,4]
[366771304,1750440706560,-395.97985313,0.00028683,4]
[366771305,1750440706570,-488.51986768,0.00028684,4]
[366771306,1750440706580,-490.0,0.00028684,4]
[366771307,1750440706590,-490.0,0.00028684,4]
[366771308,1750440706599,-490.0,0.00028684,4]
[366771309,1750440706610,-490.0,0.00028684,4]
[366771310,1750440706620,-692.35,0.00028684,4]
[366771311,1750440706630,-639.62,0.00028684,4]
[366771312,1750440706639,-238.1340014,0.00028684,4]
[366771313,1750440706649,-490.0,0.00028684,4]
[366771314,1750440706659,-490.0,0.00028684,4]
[366771315,1750440706670,-490.0,0.00028684,4]
[366771316,1750440706681,-490.0,0.00028684,4]
[366771317,1750440706691,-269.93576091,0.00028684,4]
[366771318,1750440706700,-490.0,0.00028684,4]
[366771319,1750440706710,-666.0,0.0002869,10]
[366771320,1750440706721,-168.0,0.0002876,2]
[366771321,1750440706732,-2012.0,0.00028767,7]
[366771322,1750440706742,-4181.38722174,0.00028846,2]
[366771323,1750440706754,-329.88171833,0.00028874,10]
[366771324,1750440706765,-1100.0,0.000289,10]
[366771325,1750440706782,-490.0,0.00028945,4]
[366771326,1750440706793,-490.0,0.00028945,4]
[366771327,1750440706802,-501.65,0.00028945,4]
[366771328,1750440706812,-490.0,0.00028945,4]
[366771329,1750440706823,-830.23,0.00028945,4]
[366771330,1750440706834,-665.05,0.00028945,4]
[366771331,1750440706844,-736.8,0.00028945,4]
[366771332,1750440706853,-490.0,0.00028945,4]
[366771333,1750440706863,-490.0,0.00028945,4]
[366771334,1750440706873,-2220.12,0.00028945,4]
[366771335,1750440706884,-713.54,0.00028945,4]
[366771336,1750440706893,-1265.1,0.00028945,4]
[366771337,1750440706903,-535.39,0.00028945,4]
[366771338,1750440706913,-793.31,0.00028945,4]
[366771339,1750440706924,-1348.24,0.00028945,4]
[366771340,1750440706933,-666.61,0.00028945,4]
[366771341,1750440706944,-490.0,0.00028945,4]
[366771342,1750440706954,-490.0,0.00028945,4]
[366771343,1750440706964,-490.0,0.00028945,4]
[366771344,1750440706974,-1177.57,0.00028945,4]
[366771345,1750440706985,-490.0,0.00028945,4]
[366771346,1750440706995,-490.0,0.00028945,4]
[366771347,1750440707006,-607.29477253,0.00028945,4]
[366771348,1750440707016,-771.36,0.00028945,4]
[366771349,1750440707030,-2057.42,0.00028945,4]
[366771350,1750440707040,-490.0,0.00028945,4]
[366771351,1750440707050,-490.0,0.00028946,4]
[366771352,1750440707060,-490.0,0.00028946,4]
[366771353,1750440707070,-490.0,0.00028946,4]
[366771354,1750440707079,-490.0,0.00028946,4]
[366771355,1750440707089,-490.0,0.00028946,4]
[366771356,1750440707100,-716.45,0.00028946,4]
[366771357,1750440707110,-490.0,0.00028946,4]
[366771358,1750440707120,-490.0,0.00028946,4]
[366771359,1750440707130,-520.24,0.00028946,4]
[366771360,1750440707140,-754.42,0.00028946,4]
[366771361,1750440707150,-602.12,0.00028946,4]
[366771362,1750440707160,-490.0,0.00028946,4]
[366771363,1750440707170,-490.0,0.00028946,4]
[366771364,1750440707180,-905.83,0.00028946,4]
[366771365,1750440707190,-490.0,0.00028946,4]
[366771366,1750440707201,-490.0,0.00028946,4]
[366771367,1750440707211,-492.17,0.00028946,4]
[366771368,1750440707221,-1393.17,0.00028946,4]
[366771369,1750440707231,-490.0,0.00028946,4]
[366771370,1750440707241,-490.0,0.00028946,4]
[366771371,1750440707251,-584.86,0.00028946,4]
[366771372,1750440707262,-490.0,0.00028946,4]
[366771373,1750440707276,-422.3199673,0.00028946,4]
[366771374,1750440707287,-509.4,0.00028946,4]
[366771375,1750440707297,-721.05,0.00028946,4]
[366771376,1750440707308,-834.17,0.00028946,4]
[366771377,1750440707318,-490.0,0.00028946,4]
[366771378,1750440707330,-490.0,0.00028946,4]
[366771379,1750440707341,-490.0,0.00028946,4]
[366771380,1750440707351,-554.92,0.00028946,4]
[366771381,1750440707362,-490.0,0.00028946,4]
[366771382,1750440707372,-490.0,0.00028946,4]
[366771383,1750440707382,-490.0,0.00028946,4]
[366771384,1750440707393,-490.0,0.00028946,4]
[366771385,1750440707404,-490.0,0.00028946,4]
[366771386,1750440707415,-490.0,0.00028946,4]
[366771387,1750440707426,-555.61,0.00028946,4]
[366771388,1750440707437,-490.0,0.00028946,4]
[366771389,1750440707448,-490.0,0.00028946,4]
[366771390,1750440707459,-490.0,0.00028946,4]
[366771391,1750440707469,-541.25,0.00028946,4]
[366771392,1750440707480,-490.0,0.00028946,4]
[366771393,1750440707491,-490.0,0.00028946,4]
[366771394,1750440707502,-490.0,0.00028946,4]
[366771395,1750440707513,-527.51,0.00028946,4]
[366771396,1750440707524,-764.08,0.00028946,4]
[366771397,1750440707534,-490.0,0.00028946,4]
[366771398,1750440707545,-570.69,0.00028946,4]
[366771399,1750440707555,-490.0,0.00028946,4]
[366771400,1750440707566,-490.0,0.00028946,4]
[366771401,1750440707576,-890.98,0.00028946,4]
[366771402,1750440707586,-490.0,0.00028946,4]
[366771403,1750440707597,-546.75,0.00028946,4]
[366771404,1750440707607,-1938.15,0.00028946,4]
[366771405,1750440707618,-490.0,0.00028946,4]
[366771406,1750440707629,-1286.16,0.00028946,4]
[366771407,1750440707640,-355.48364932,0.00028946,4]
[366771408,1750440707651,-490.0,0.00028946,4]
[366771409,1750440707661,-1042.0,0.00028946,4]
[366771410,1750440707672,-490.0,0.00028946,4]
[366771411,1750440707682,-791.65,0.00028946,4]
[366771412,1750440707692,-566.26,0.00028946,4]
[366771413,1750440707703,-823.76,0.00028946,4]
[366771414,1750440707712,-227.68461569,0.00028946,4]
[366771415,1750440707723,-653.43,0.00028946,4]
[366771416,1750440707734,-490.0,0.00028946,4]
[366771417,1750440707745,-797.01,0.00028946,4]
[366771418,1750440707756,-705.01,0.00028946,4]
[366771419,1750440707766,-493.89,0.00028946,4]
[366771420,1750440707778,-499.27,0.00028946,4]
[366771421,1750440707789,-928.6,0.00028946,4]
[366771422,1750440707800,-340.3103586,0.00028946,4]
[366771423,1750440707811,-1752.63,0.00028946,4]
[366771424,1750440707824,-490.0,0.00028946,4]
[366771425,1750440707835,-490.0,0.00028946,4]
[366771426,1750440707846,-490.0,0.00028946,4]
[366771427,1750440707858,-669.55,0.00028946,4]
[366771428,1750440707869,-490.0,0.00028946,4]
[366771429,1750440707880,-490.0,0.00028946,4]
[366771430,1750440707890,-490.0,0.00028946,4]
[366771431,1750440707901,-614.6,0.00028946,4]
[366771432,1750440707911,-513.28,0.00028946,4]
[366771433,1750440707922,-1221.53,0.00028946,4]
[366771434,1750440707932,-490.0,0.00028947,4]
[366771435,1750440707943,-490.0,0.00028947,4]
[366771436,1750440707953,-490.0,0.00028947,4]
[366771437,1750440707964,-490.0,0.00028947,4]
[366771438,1750440707975,-647.28,0.00028947,4]
[366771439,1750440707985,-516.8,0.00028947,4]
[366771440,1750440707995,-667.67,0.00028947,4]
[366771441,1750440708006,-490.0,0.00028947,4]
[366771442,1750440708016,-490.0,0.00028947,4]
[366771443,1750440708029,-490.0,0.00028947,4]
[366771444,1750440708040,-490.0,0.00028947,4]
[366771445,1750440708051,-504.97,0.00028947,4]
[366771446,1750440708062,-490.0,0.00028947,4]
[366771447,1750440708073,-490.0,0.00028947,4]
[366771448,1750440708084,-490.0,0.00028947,4]
[366771449,1750440708096,-514.51,0.00028947,4]
[366771450,1750440708107,-490.0,0.00028947,4]
[366771451,1750440708118,-490.0,0.00028947,4]
[366771452,1750440708128,-490.0,0.00028947,4]
[366771453,1750440708139,-490.0,0.00028947,4]
[366771454,1750440708150,-603.69,0.00028947,4]
[366771455,1750440708161,-490.0,0.00028947,4]
[366771456,1750440708172,-916.28,0.00028947,4]
[366771457,1750440708184,-490.0,0.00028947,4]
[366771458,1750440708195,-490.0,0.00028947,4]
[366771459,1750440708206,-578.52,0.00028947,4]
[366771460,1750440708217,-490.0,0.00028947,4]
[366771461,1750440708228,-793.1,0.00028947,4]
[366771462,1750440708238,-490.0,0.00028947,4]
[366771463,1750440708249,-490.0,0.00028947,4]
[366771464,1750440708260,-490.0,0.00028947,4]
[366771465,1750440708274,-609.3022379,0.00028947,4]
[366771466,1750440708287,-490.0,0.00028947,4]
[366771467,1750440708298,-490.0,0.00028947,4]
[366771468,1750440708310,-490.0,0.00028947,4]
[366771469,1750440708322,-490.0,0.00028947,4]
[366771470,1750440708333,-727.94,0.00028947,4]
[366771471,1750440708345,-490.0,0.00028947,4]
[366771472,1750440708357,-490.0,0.00028947,4]
[366771473,1750440708369,-490.0,0.00028947,4]
[366771474,1750440708380,-490.0,0.00028947,4]
[366771475,1750440708391,-490.0,0.00028947,4]
[366771476,1750440708402,-490.0,0.00028947,4]
[366771477,1750440708413,-490.0,0.00028947,4]
[366771478,1750440708425,-417.36215024,0.00028947,4]
[366771479,1750440708436,-490.0,0.00028947,4]
[366771480,1750440708448,-591.47,0.00028947,4]
[366771481,1750440708460,-1424.33,0.00028947,4]
[366771482,1750440708471,-1144.78,0.00028947,4]
[366771483,1750440708482,-491.74,0.00028947,4]
[366771484,1750440708494,-490.0,0.00028947,4]
[366771485,1750440708506,-1076.06,0.00028947,4]
[366771486,1750440708517,-509.95,0.00028947,4]
[366771487,1750440708529,-382.91336298,0.00028947,4]
[366771488,1750440708541,-1366.43,0.00028947,4]
[366771489,1750440708552,-527.56,0.00028947,4]
[366771490,1750440708564,-1816.18,0.00028947,4]
[366771491,1750440708576,-551.8,0.00028947,4]
[366771492,1750440708587,-682.44,0.00028947,4]
[366771493,1750440708598,-490.0,0.00028947,4]
[366771494,1750440708610,-490.0,0.00028947,4]
[366771495,1750440708621,-574.86,0.00028947,4]
[366771496,1750440708632,-10103.26,0.00028947,4]
[366771497,1750440708643,-490.0,0.00028947,4]
[366771498,1750440708654,-490.0,0.00028947,4]
[366771499,1750440708665,-634.64,0.00028947,4]
[366771500,1750440708676,-3814.59,0.00028947,2]
[366771501,1750440708688,-1940.17,0.00028947,4]
[366771502,1750440708699,-490.0,0.00028947,4]
[366771503,1750440708710,-710.04,0.00028947,4]
[366771504,1750440708721,-682.88,0.00028947,4]
[366771505,1750440708732,-490.0,0.00028947,4]
[366771506,1750440708747,-2290.89,0.00028947,4]
[366771507,1750440708759,-490.0,0.00028947,4]
[366771508,1750440708770,-2759.01,0.00028947,4]
[366771509,1750440708783,-3647.07,0.00028947,4]
[366771510,1750440708794,-651.97,0.00028947,4]
[366771511,1750440708805,-631.35551516,0.00028947,4]
[366771512,1750440708816,-582.01,0.00028947,4]
[366771513,1750440708829,-1217.61,0.00028947,4]
[366771514,1750440708841,-847.56,0.00028947,4]
[366771515,1750440708853,-490.0,0.00028947,4]
[366771516,1750440708864,-1886.27,0.00028947,4]
[366771517,1750440708876,-490.0,0.00028947,4]
[366771518,1750440709099,-1594.08,0.00028947,4]
[366771519,1750440709110,-490.0,0.00028947,4]
[366771520,1750440709121,-490.0,0.00028947,4]
[366771521,1750440709131,-1903.29,0.00028947,4]
[366771522,1750440709141,-665.17,0.00028947,4]
[366771523,1750440709152,-638.76,0.00028947,4]
[366771524,1750440709163,-538.1,0.00028947,4]
[366771525,1750440709173,-1000.0,0.00028947,4]
[366771526,1750440709184,-701.54,0.00028947,4]
[366771527,1750440709194,-632.98,0.00028947,4]
[366771528,1750440709205,-490.0,0.00028947,4]
[366771529,1750440709216,-1799.61,0.00028947,4]
[366771530,1750440709227,-543.75,0.00028947,4]
[366771531,1750440709238,-490.0,0.00028947,4]
[366771532,1750440709249,-751.18,0.00028947,4]
[366771533,1750440709259,-490.0,0.00028947,4]
[366771534,1750440709272,-490.0,0.00028947,4]
[366771535,1750440709282,-1965.09,0.00028947,4]
[366771536,1750440709293,-490.0,0.00028947,4]
[366771537,1750440709304,-490.0,0.00028947,4]
[366771538,1750440709315,-835.07,0.00028947,4]
[366771539,1750440709326,-506.38,0.00028947,4]
[366771540,1750440709336,-535.19,0.00028947,4]
[366771541,1750440709346,-1865.75,0.00028947,4]
[366771542,1750440709357,-490.0,0.00028947,4]
[366771543,1750440709369,-490.0,0.00028947,4]
[366771544,1750440709380,-2004.72,0.00028947,4]
[366771545,1750440709390,-490.0,0.00028947,4]
[366771546,1750440709402,-593.92,0.00028947,4]
[366771547,1750440709412,-764.06,0.00028947,4]
[366771548,1750440709423,-843.4,0.00028947,4]
[366771549,1750440709434,-490.0,0.00028952,4]
[366771550,1750440709445,-249.1240147,0.00028952,4]
[366771551,1750440709456,-496.62,0.00028952,4]
[366771552,1750440709466,-490.0,0.00028952,4]
[366771553,1750440709477,-490.0,0.00028952,4]
[366771554,1750440709488,-592.71,0.00028952,4]
[366771555,1750440709498,-490.0,0.00028952,4]
[366771556,1750440709508,-490.0,0.00028952,4]
[366771557,1750440709520,-490.0,0.00028952,4]
[366771558,1750440709530,-490.0,0.00028952,4]
[366771559,1750440709540,-705.73,0.00028952,4]
[366771560,1750440709551,-490.0,0.00028952,4]
[366771561,1750440709561,-490.0,0.00028952,4]
[366771562,1750440709571,-490.0,0.00028952,4]
[366771563,1750440709582,-490.0,0.00028952,4]
[366771564,1750440709592,-372.6,0.00028952,4]
[366771565,1750440709602,-490.0,0.00028952,4]
[366771566,1750440709612,-490.0,0.00028952,4]
[366771567,1750440709622,-490.0,0.00028952,4]
[366771568,1750440709632,-490.0,0.00028952,4]
[366771569,1750440709642,-490.0,0.00028952,4]
[366771570,1750440709653,-490.0,0.00028952,4]
[366771571,1750440709664,-490.0,0.00028952,4]
[366771572,1750440709674,-490.0,0.00028952,4]
[366771573,1750440709685,-490.0,0.00028952,4]
[366771574,1750440709695,-490.0,0.00028952,4]
[366771575,1750440709705,-200.05222687,0.00028952,4]
[366771576,1750440709715,-490.0,0.00028952,4]
[366771577,1750440709726,-678.01,0.00028952,4]